bitfinex-derivatives/quotes_SOLF0:USTF0_20250716
["timestamp","ask_amount","ask_price","bid_price","bid_amount"]
[1752707096500,3.15,173.16,173.1,3.14]
[1752707096698,3.15,173.13,173.11,3.14]
[1752707096897,3.15,173.16,173.12,3.14]
[1752707097103,3.18789768,173.17,173.15,3.14]
[1752707097297,0.03789768,173.17,173.15,3.2824834]
[1752707097503,0.03789768,173.17,173.16,3.14]
[1752707097899,0.03789768,173.17,173.16,8.9119]
[1752707101608,3.18789768,173.17,173.16,3.14]
[1752707101803,0.03789768,173.17,173.15,173.2624834]
[1752707102007,3.15,173.16,173.15,6.4224834]
[1752707102204,0.03789768,173.17,173.16,3.14]
[1752707102608,3.15,173.2,173.16,3.14]
[1752707102912,3.2824834,173.34,173.2,3.14]
[1752707102913,3.15,173.28,173.2,3.14]
[1752707103112,3.15,173.28,173.22,3.23]
[1752707103315,9.1895,173.23,173.22,3.23]
[1752707103503,9.1895,173.23,173.21,3.2824834]
[1752707103818,3.42,173.23,173.21,6.5124834]
[1752707104010,3.42,173.23,173.22,3.23]
[1752707104711,3.2824834,173.29,173.21,6.5124834]
[1752707104712,3.42,173.22,173.21,6.5124834]
[1752707104908,3.42,173.21,173.2,0.03801191]
[1752707105113,3.42,173.11,173.01,17.27]
[1752707105309,3.42,173.11,173.0,3.33333333]
[1752707105310,3.42,173.1,173.0,3.33333333]
[1752707105517,3.42,173.08,173.0,3.33333333]
[1752707105710,3.42,173.03,173.01,3.30052202]
[1752707106018,3.42,173.04,173.02,6.53052202]
[1752707106316,3.42,173.03,173.02,3.30052202]
[1752707106512,5.7762,173.04,173.02,3.30052202]
[1752707106718,4.45634948,173.05,173.02,6.53052202]
[1752707106913,1.03634948,173.05,173.02,8.12354305]
[1752707107114,1.03634948,173.05,173.03,4.89354305]
[1752707107313,1.03634948,173.05,173.04,8.12354305]
[1752707107922,3.42,173.12,173.04,8.12354305]
[1752707108814,3.42,173.13,173.08,3.23]
[1752707109014,3.42,173.12,173.09,4.89126474]
[1752707109213,5.7733,173.12,173.09,8.12126474]
[1752707109430,3.42,173.14,173.1,3.23]
[1752707109814,3.42,173.14,173.0,180.94459807]
[1752707109815,12.83004277,173.15,173.11,4.89126474]
[1752707110020,9.41004277,173.16,173.12,3.23]
[1752707110220,3.42,173.13,173.11,4.89126474]
[1752707110425,9.41004277,173.17,173.12,3.23]
[1752707110618,3.42,173.14,173.12,9.0032]
[1752707110817,9.41004277,173.17,173.13,3.23]
[1752707110818,3.42,173.16,173.13,3.23]
[1752707111021,9.41004277,173.18,173.15,4.89126474]
[1752707111219,12.83004277,173.2,173.18,3.23]
[1752707111520,12.83004277,173.19,173.17,4.89126474]
[1752707111821,9.41004277,173.2,173.17,3.23]
[1752707112023,3.42,173.18,173.16,4.89126474]
[1752707112223,3.42,173.17,173.16,4.89126474]
[1752707113319,15.18114277,173.19,173.1,177.81126474]
[1752707113320,9.41004277,173.19,173.1,172.92]
[1752707113525,3.42,173.17,173.15,8.12126474]
[1752707113726,3.42,173.17,173.16,3.23]
[1752707114522,3.42,173.17,173.15,10.66316474]
[1752707114720,3.42,173.17,173.15,13.89316474]
[1752707114917,3.42,173.17,173.16,9.0019]
[1752707115122,3.42,173.17,173.16,3.23]
[1752707116826,3.42,173.22,173.16,3.23]
[1752707117027,3.42,173.21,173.19,8.12126474]
[1752707117326,3.42,173.2,173.19,8.12126474]
[1752707117528,3.42,173.2,173.19,4.89126474]
[1752707117723,3.42,173.28,173.17,9.0015]
[1752707117926,3.42,173.28,173.19,4.89126474]
[1752707118318,3.42,173.27,173.19,4.89126474]
[1752707118524,3.42,173.27,173.21,4.89126474]
[1752707119125,3.42,173.27,173.21,8.12126474]
[1752707119437,3.42,173.27,173.23,8.12126474]
[1752707119730,12.54672369,173.26,173.23,8.12126474]
[1752707119929,3.42,173.24,173.23,8.12126474]
[1752707120328,3.42,173.24,173.23,3.23]
[1752707120524,3.42,173.3,173.22,4.89126474]
[1752707120826,3.42,173.3,173.21,3.23]
[1752707121029,3.42,173.3,173.21,4.89126474]
[1752707121435,5.7699,173.22,173.18,10.66216474]
[1752707121635,3.42,173.2,173.18,13.89216474]
[1752707122229,4.89126474,173.29,173.1,196.08589818]
[1752707122230,3.42,173.26,173.17,4.89126474]
[1752707122537,3.42,173.25,173.17,4.92760428]
[1752707122834,3.42,173.18,173.17,4.92760428]
[1752707123030,3.42,173.18,173.17,8.15760428]
[1752707123833,3.42,173.19,173.17,8.15760428]
[1752707124936,3.42,173.18,173.17,4.92760428]
[1752707125131,3.42,173.18,173.17,0.03633954]
[1752707126036,3.42,173.18,173.17,3.26633954]
[1752707127332,3.42,173.19,173.18,3.23]
[1752707127639,3.42,173.21,173.18,8.12126474]
[1752707127934,3.42,173.2,173.18,8.12126474]
[1752707128130,3.42,173.2,173.18,13.89246474]
[1752707128532,3.42,173.2,173.19,9.0009]
[1752707128736,12.54672369,173.26,173.18,4.89126474]
[1752707128737,3.42,173.21,173.2,3.23]
[1752707128935,3.42,173.23,173.2,8.12126474]
[1752707129139,3.42,173.22,173.2,13.89176474]
[1752707129328,3.42,173.22,173.2,8.12126474]
[1752707129528,3.42,173.25,173.2,4.89126474]
[1752707129734,3.42,173.24,173.22,8.12126474]
[1752707130131,154.29558629,173.32,173.22,8.12126474]
[1752707130132,3.42,173.23,173.22,8.12126474]
[1752707131431,138.61218168,173.32,173.2,4.89126474]
[1752707131432,12.54672369,173.28,173.2,4.89126474]
[1752707131638,3.42,173.27,173.2,4.89126474]
[1752707132130,3.42,173.27,173.22,8.12126474]
[1752707132332,5.7692,173.24,173.22,8.12126474]
[1752707132529,3.42,173.23,173.22,8.12126474]
[1752707133234,9.1895,173.23,173.22,8.12126474]
[1752707133537,3.42,173.23,173.22,8.12126474]
[1752707133734,12.54672369,173.28,173.22,8.12126474]
[1752707134035,3.42,173.27,173.24,4.89126474]
[1752707134539,3.42,173.27,173.22,4.89126474]
[1752707134738,3.42,173.27,173.23,3.12]
[1752707134939,3.42,173.28,173.26,8.01126474]
[1752707135237,3.42,173.3,173.29,3.12]
[1752707135436,12.54672369,173.33,173.29,3.12]
[1752707135437,3.42,173.33,173.29,3.12]
[1752707135632,3.42,173.33,173.32,4.89126474]
[1752707135831,12.54672369,173.34,173.32,3.94699731]
[1752707136138,3.42,173.34,173.32,3.94699731]
[1752707136337,3.42,173.34,173.33,3.12]
[1752707136937,12.81002062,173.34,173.33,3.12]
[1752707137139,9.1859,173.34,173.33,8.01126474]
[1752707137535,9.39002062,173.35,173.33,8.01126474]
[1752707137840,9.39002062,173.36,173.34,3.12]
[1752707138042,12.81002062,173.39,173.35,4.89126474]
[1752707138341,5.7659,173.34,173.33,8.01126474]
[1752707138545,9.1859,173.34,173.33,8.01126474]
[1752707138840,3.42,173.38,173.33,4.89126474]
[1752707139037,3.42,173.34,173.32,4.89126474]
[1752707139241,3.42,173.34,173.31,4.89126474]
[1752707139742,3.42,173.32,173.31,8.01126474]
[1752707140041,9.1865,173.32,173.31,8.01126474]
[1752707140441,9.1865,173.32,173.25,5.7686]
[1752707140442,9.39002062,173.38,173.28,4.89126474]
[1752707140736,12.81002062,173.29,173.21,4.89126474]
[1752707140940,3.42,173.29,173.22,3.12]
[1752707141140,5.7694,173.24,173.21,4.89126474]
[1752707141337,5.7694,173.24,173.23,3.12]
[1752707141537,5.7694,173.24,173.23,8.01126474]
[1752707141940,9.1894,173.24,173.23,8.01126474]
[1752707142544,9.1894,173.24,173.23,4.89126474]
[1752707142745,5.7699,173.22,173.21,8.04771025]
[1752707143143,9.1899,173.22,173.21,0.03644551]
[1752707144939,5.7699,173.22,173.21,3.15644551]
[1752707145341,9.1899,173.22,173.21,3.15644551]
[1752707145543,3.42,173.27,173.21,3.15644551]
[1752707146047,3.42,173.27,173.21,3.12]
[1752707146748,5.7689,173.25,173.22,4.89126474]
[1752707146942,3.42,173.27,173.23,3.12]
[1752707147142,3.42,173.3,173.23,3.12]
[1752707147341,3.42,173.27,173.23,3.12]
[1752707147541,3.42,173.27,173.22,4.89126474]
[1752707147745,3.42,173.27,173.25,3.12]
[1752707148144,9.1882,173.27,173.22,4.89126474]
[1752707148345,3.42,173.31,173.23,3.12]
[1752707148846,3.42,173.25,173.23,3.12]
[1752707149251,3.42,173.24,173.2,4.89126474]
[1752707149549,3.42,173.24,173.22,3.12]
[1752707149751,3.42,173.24,173.23,3.12]
[1752707150450,5.769,173.25,173.23,3.12]
[1752707150950,3.42,173.26,173.24,3.12]
[1752707151345,9.1888,173.26,173.24,3.12]
[1752707152955,9.1883,173.27,173.24,3.12]
[1752707153155,5.7683,173.27,173.23,5.80581813]
[1752707153356,9.1883,173.27,173.23,5.80581813]
[1752707153550,3.42,173.27,173.23,5.80581813]
[1752707153752,3.42,173.3,173.24,4.89126474]
[1752707153952,3.42,173.29,173.25,3.12]
[1752707154256,3.42,173.29,173.26,10.65976474]
[1752707154452,3.42,173.29,173.28,3.12]
[1752707154756,9.1866,173.32,173.29,3.12]
[1752707154952,9.1866,173.32,173.3,3.12]
[1752707155349,3.42,173.31,173.3,3.12]
[1752707155850,3.42,173.31,173.3,8.01126474]
[1752707156556,3.42,173.34,173.3,4.89126474]
[1752707156757,3.42,173.34,173.33,8.01126474]
[1752707157054,3.42,173.35,173.33,8.01126474]
[1752707157556,5.7657,173.35,173.33,8.01126474]
[1752707157757,3.42,173.34,173.33,8.01126474]
[1752707158155,3.42,173.4,173.34,3.12]
[1752707158364,9.39002062,173.42,173.37,8.01126474]
[1752707158551,9.39002062,173.43,173.39,4.89126474]
[1752707158751,3.42,173.4,173.39,4.89126474]
[1752707158955,3.42,173.42,173.39,4.89126474]
[1752707159157,9.1835,173.42,173.41,4.89126474]
[1752707159358,3.42,173.42,173.41,4.89126474]
[1752707159752,9.39002062,173.47,173.41,13.77486474]
[1752707159957,120.47769777,173.51,173.41,13.77486474]
[1752707159958,3.42,173.44,173.42,3.12]
[1752707160265,3.42,173.43,173.42,3.12]
[1752707160656,3.42,173.43,173.41,8.01126474]
[1752707160854,9.39002062,173.48,173.3,4.89126474]
[1752707161058,3.42,173.37,173.33,4.89126474]
[1752707161254,9.39002062,173.43,173.34,3.12]
[1752707161460,3.42,173.37,173.35,3.12]
[1752707162259,3.42,173.35,173.33,8.01126474]
[1752707162662,3.42,173.35,173.34,3.12]
[1752707162863,9.185,173.37,173.33,4.89126474]
[1752707163161,9.185,173.37,173.35,3.13]
[1752707164267,8.8652,173.36,173.35,3.13]
[1752707164461,8.8652,173.36,173.33,10.65736474]
[1752707164661,8.8652,173.36,173.34,3.13]
[1752707165357,8.865,173.37,173.34,5.7659]
[1752707165558,3.1,173.42,173.36,3.13]
[1752707165962,3.1,173.42,173.36,8.02126474]
[1752707166360,3.1,173.42,173.36,3.13]
[1752707166666,4.89126474,173.44,173.33,4.89126474]
[1752707166667,5.7652,173.37,173.33,4.89126474]
[1752707166869,9.39002062,173.43,173.33,4.89126474]
[1752707167166,9.39002062,173.42,173.33,10.65726474]
[1752707167360,3.1,173.41,173.33,8.02126474]
[1752707167757,3.1,173.41,173.33,13.78746474]
[1752707167957,3.1,173.41,173.34,3.13]
[1752707168161,5.7654,173.36,173.34,3.13]
[1752707168362,8.8654,173.36,173.34,3.13]
[1752707169164,8.865,173.37,173.33,4.89126474]
[1752707169365,3.1,173.39,173.36,3.13]
[1752707169564,9.39002062,173.42,173.36,3.13]
[1752707169766,3.1,173.37,173.36,3.13]
[1752707169965,3.1,173.37,173.35,8.02126474]
[1752707170167,3.1,173.37,173.36,3.13]
[1752707171363,3.1,173.37,173.36,8.8952]
[1752707171565,3.1,173.42,173.37,3.13]
[1752707172168,3.1,173.38,173.37,3.13]
[1752707172467,3.1,173.4,173.37,8.02126474]
[1752707172672,3.1,173.39,173.37,8.02126474]
[1752707172972,3.1,173.39,173.38,3.13]
[1752707173169,3.1,173.4,173.38,8.8946]
[1752707173368,3.1,173.4,173.38,3.13]
[1752707173770,3.1,173.4,173.39,8.02126474]
[1752707174266,3.1,173.4,173.39,4.89126474]
[1752707175170,8.8639,173.4,173.39,4.89126474]
[1752707176071,8.8642,173.39,173.38,0.0365124]
[1752707177877,3.1,173.39,173.38,0.0365124]
[1752707178072,9.39002062,173.44,173.38,0.0365124]
[1752707178274,3.1,173.44,173.41,4.89126474]
[1752707178475,3.1,173.44,173.42,3.13]
[1752707178676,3.1,173.44,173.43,8.02126474]
[1752707178878,3.1,173.46,173.44,3.13]
[1752707179076,3.1,173.46,173.45,8.02126474]
[1752707179277,9.39002062,173.51,173.45,8.02126474]
[1752707179476,3.1,173.47,173.45,8.02126474]
[1752707179884,8.8618,173.47,173.45,8.02126474]
[1752707180182,3.1,173.46,173.45,4.89126474]
[1752707180777,8.8619,173.46,173.45,4.89126474]
[1752707181675,3.1,173.46,173.45,8.02126474]
[1752707181979,3.1,173.48,173.47,3.13]
[1752707182179,3.1,173.48,173.47,8.02126474]
[1752707182376,3.1,173.48,173.47,4.89126474]
[1752707182780,8.8618,173.47,173.45,8.02126474]
[1752707183176,5.7613,173.48,173.46,3.13]
[1752707183372,8.8613,173.48,173.47,4.89126474]
[1752707185080,8.8613,173.48,173.47,8.02126474]
[1752707185582,8.8613,173.48,173.47,4.89126474]
[1752707186082,3.1,173.48,173.47,8.02126474]
[1752707186283,3.1,173.55,173.47,8.02126474]
[1752707186682,3.1,173.55,173.47,13.78266474]
[1752707187784,3.1,173.55,173.49,8.02126474]
[1752707187985,3.1,173.55,173.49,4.89126474]
[1752707188472,5.7606,173.5,173.49,4.89126474]
[1752707188675,3.1,173.55,173.46,4.89126474]
[1752707189181,3.1,173.55,173.34,11.5315]
[1752707189182,4.89126474,173.52,173.43,4.89126474]
[1752707189483,3.1,173.51,173.43,8.02126474]
[1752707190583,3.1,173.51,173.44,3.13]
[1752707191083,5.7619,173.47,173.44,3.13]
[1752707191382,14.28128536,173.54,173.43,8.8927]
[1752707191383,3.1,173.53,173.43,8.8927]
[1752707191581,3.1,173.53,173.43,13.78396474]
[1752707191775,5.7618,173.47,173.44,5.7625]
[1752707191980,5.7618,173.47,173.45,3.13]
[1752707192186,9.39002062,173.53,173.46,3.13]
[1752707192378,8.8613,173.48,173.47,3.13]
[1752707192778,3.1,173.48,173.41,3.13]
[1752707192986,9.39002062,173.54,173.44,4.89126474]
[1752707192987,8.9926,173.45,173.44,4.89126474]
[1752707193684,3.23,173.45,173.44,4.89126474]
[1752707193886,3.23,173.45,173.44,8.25126474]
[1752707194387,5.762,173.46,173.44,8.25126474]
[1752707194581,8.992,173.46,173.45,3.36]
[1752707194980,3.23,173.46,173.45,3.36]
[1752707195477,3.23,173.45,173.42,3.36]
[1752707195683,3.23,173.5,173.41,4.89126474]
[1752707195883,9.39002062,173.5,173.42,3.36]
[1752707196080,5.7625,173.45,173.42,9.1232]
[1752707196284,3.23,173.49,173.43,3.36]
[1752707196285,3.23,173.44,173.43,3.36]
[1752707196676,3.23,173.43,173.42,3.36]
[1752707196880,3.23,173.43,173.39,8.25126474]
[1752707197088,4.89126474,173.45,173.36,3.36]
[1752707197283,4.89126474,173.45,173.35,4.89126474]
[1752707197284,3.23,173.37,173.35,3.36]
[1752707197481,3.23,173.36,173.34,3.36]
[1752707197685,3.23,173.36,173.35,3.36]
[1752707198087,3.23,173.37,173.35,3.36]
[1752707198390,3.23,173.42,173.33,8.25126474]
[1752707198581,3.23,173.4,173.33,8.25126474]
[1752707198782,3.23,173.4,173.31,8.25126474]
[1752707198986,3.23,173.34,173.32,3.36]
[1752707199487,3.23,173.34,173.33,3.36]
[1752707200883,3.23,173.34,173.28,170.84]
[1752707200884,3.23,173.34,173.3,3.36]
[1752707201080,3.23,173.34,173.3,8.25126474]
[1752707201484,3.23,173.37,173.3,8.25126474]
[1752707202185,4.89126474,173.39,173.3,8.25126474]
[1752707202186,9.39002062,173.36,173.3,8.25126474]
[1752707202386,3.23,173.34,173.3,8.25126474]
[1752707202785,3.23,173.34,173.3,3.36]
[1752707203179,8.9968,173.32,173.3,3.36]
[1752707203385,3.23,173.32,173.3,3.36]
[1752707203689,3.23,173.32,173.31,3.36]
[1752707204590,3.23,173.33,173.32,3.36]
[1752707204888,3.23,173.32,173.31,8.25126474]
[1752707205288,3.23,173.32,173.31,4.89126474]
[1752707205490,3.23,173.32,173.31,8.25126474]
[1752707205690,3.23,173.32,173.31,3.36]
[1752707206586,3.23,173.33,173.32,3.36]
[1752707206785,8.996,173.34,173.31,3.36]
[1752707206990,3.23,173.34,173.32,3.36]
[1752707207185,3.23,173.33,173.32,3.36]
[1752707207989,8.9962,173.33,173.32,3.36]
[1752707208986,3.23,173.32,173.31,3.36]
[1752707209589,5.7662,173.33,173.3,4.89126474]
[1752707209792,8.9962,173.33,173.32,3.36]
[1752707210796,9.39002062,173.37,173.33,3.36]
[1752707211096,3.23,173.36,173.33,3.36]
[1752707211298,9.39002062,173.37,173.3,4.89126474]
[1752707211605,3.23,173.36,173.34,4.89126474]
[1752707211797,3.23,173.36,173.35,3.36]
[1752707211994,12.62002062,173.39,173.35,3.36]
[1752707212197,3.23,173.39,173.37,4.89126474]
[1752707212401,5.764,173.4,173.38,3.36]
[1752707212602,8.994,173.4,173.37,4.89126474]
[1752707212898,8.994,173.4,173.34,170.76]
[1752707212899,3.23,173.41,173.4,3.36]
[1752707213099,9.39002062,173.43,173.4,3.36]
[1752707213400,3.23,173.43,173.42,3.36]
[1752707213599,8.9929,173.43,173.42,3.36]
[1752707213901,3.23,173.43,173.41,4.89126474]
[1752707214097,3.23,173.42,173.41,8.25126474]
[1752707215398,5.763,173.43,173.41,8.25126474]
[1752707215599,5.7627,173.44,173.42,3.36]
[1752707215804,8.9927,173.44,173.42,3.36]
[1752707215991,8.9927,173.44,173.43,3.36]
[1752707216193,3.23,173.46,173.43,4.89126474]
[1752707216500,3.23,173.46,173.45,3.36]
[1752707216696,3.23,173.46,173.45,8.25126474]
[1752707216899,8.9921,173.46,173.45,4.89126474]
[1752707220203,3.23,173.44,173.35,3.36]
[1752707220396,3.23,173.43,173.42,4.89126474]
[1752707220602,3.23,173.43,173.39,8.25126474]
[1752707220993,3.23,173.43,173.39,4.89126474]
[1752707221193,3.23,173.43,173.37,8.25126474]
[1752707221396,3.23,173.43,173.34,3.36]
[1752707221601,9.39002062,173.39,173.33,4.89126474]
[1752707221799,3.23,173.33,173.32,8.25126474]
[1752707221993,5.7662,173.34,173.32,8.25126474]
[1752707222301,3.23,173.34,173.32,4.89126474]
[1752707222501,3.23,173.34,173.33,3.36]
[1752707222703,8.9957,173.35,173.34,3.36]
[1752707223407,3.36,173.37,173.32,4.89126474]
[1752707223603,3.36,173.37,173.27,497.82]
[1752707223604,3.36,173.38,173.37,3.33]
[1752707223805,3.36,173.39,173.36,4.89126474]
[1752707224202,3.36,173.35,173.34,8.22126474]
[1752707225608,5.7653,173.36,173.34,8.22126474]
[1752707225801,9.1253,173.36,173.34,8.22126474]
[1752707226001,9.1253,173.36,173.35,3.33]
[1752707227708,5.7653,173.36,173.35,3.33]
[1752707227906,9.1256,173.35,173.34,4.89126474]
[1752707228706,9.1256,173.35,173.34,8.22126474]
[1752707231811,9.1256,173.35,173.34,3.33]
[1752707233018,9.1256,173.35,173.34,6.62164176]
[1752707233703,12.54672369,173.42,173.35,3.33]
[1752707233704,5.7653,173.36,173.35,3.33]
[1752707233905,5.7653,173.36,173.35,6.62164176]
[1752707234308,5.7652,173.37,173.36,3.33]
[1752707234716,9.1252,173.37,173.36,3.33]
[1752707235013,9.1252,173.36,173.35,3.29164176]
[1752707235216,9.1252,173.36,173.35,6.62164176]
[1752707235614,5.7652,173.36,173.35,6.62164176]
[1752707236509,9.1252,173.36,173.35,6.62164176]
[1752707236913,5.7651,173.37,173.35,6.62164176]
[1752707237111,9.1251,173.37,173.36,3.33]
[1752707238121,9.1251,173.37,173.36,6.62164176]
[1752707238419,5.7651,173.37,173.36,6.62164176]
[1752707238714,9.1251,173.37,173.36,3.29164176]
[1752707239723,9.1251,173.37,173.36,6.62164176]
[1752707240121,18.51512062,173.37,173.36,6.62164176]
[1752707242527,18.51512062,173.37,173.36,3.29164176]
[1752707242922,3.36,173.37,173.33,3.33]
[1752707243126,12.77745219,173.36,173.35,3.29164176]
[1752707243525,18.54265219,173.36,173.35,3.29164176]
[1752707244128,15.18265219,173.36,173.35,3.29164176]
[1752707244424,12.54672369,173.4,173.33,3.29164176]
[1752707244623,9.41743741,173.35,173.33,3.29164176]
[1752707244829,3.36,173.34,173.33,3.29164176]
[1752707245129,3.36,173.34,173.33,6.62164176]
[1752707245628,9.126,173.34,173.33,3.29164176]
[1752707245931,18.54343741,173.34,173.33,3.29164176]
[1752707246230,18.54343741,173.34,173.33,6.62164176]
[1752707247031,3.36,173.37,173.33,6.62164176]
[1752707247227,3.36,173.37,173.36,6.62164176]
[1752707247626,3.36,173.37,173.36,3.29164176]
[1752707248029,9.1249,173.37,173.36,3.29164176]
[1752707248331,3.36,173.37,173.33,6.62164176]
[1752707248625,3.36,173.38,173.32,6.62164176]
[1752707248830,3.36,173.38,173.34,3.29164176]
[1752707249030,12.54672369,173.38,173.34,6.62164176]
[1752707249334,3.36,173.37,173.34,6.62164176]
[1752707249730,9.1258,173.35,173.34,6.62164176]
[1752707250032,3.36,173.36,173.35,3.33]
[1752707250430,9.1252,173.36,173.35,3.33]
[1752707250628,3.36,173.36,173.35,3.33]
[1752707250829,3.36,173.39,173.34,3.29164176]
[1752707251026,9.1242,173.39,173.38,3.29164176]
[1752707251632,5.764,173.4,173.38,3.29164176]
[1752707251833,9.124,173.4,173.39,3.33]
[1752707252832,3.36,173.4,173.39,3.33]
[1752707253427,9.1242,173.4,173.38,6.50164176]
[1752707253733,3.11,173.42,173.38,3.29164176]
[1752707254037,8.8742,173.39,173.38,3.29164176]
[1752707254332,12.54672369,173.43,173.38,6.50164176]
[1752707254528,5.7637,173.41,173.4,3.29164176]
[1752707254724,8.8737,173.41,173.4,6.50164176]
[1752707255025,8.8737,173.41,173.4,3.29164176]
[1752707256341,8.8737,173.41,173.38,3.21]
[1752707256342,3.11,173.43,173.38,3.29164176]
[1752707256529,12.54672369,173.43,173.38,6.50164176]
[1752707256730,3.11,173.42,173.38,6.50164176]
[1752707257040,8.8742,173.39,173.38,6.50164176]
[1752707258538,5.764,173.4,173.38,6.50164176]
[1752707258836,8.874,173.4,173.39,3.21]
[1752707259633,3.29164176,173.49,173.39,3.21]
[1752707259634,3.11,173.43,173.39,3.21]
[1752707259835,3.11,173.45,173.42,6.50164176]
[1752707260035,12.54672369,173.48,173.44,3.29164176]
[1752707260237,5.7622,173.45,173.44,3.29164176]
[1752707260436,12.54672369,173.48,173.44,6.50164176]
[1752707260632,3.11,173.48,173.44,6.50164176]
[1752707260839,3.11,173.46,173.44,6.50164176]
[1752707261137,3.11,173.46,173.44,3.29164176]
[1752707261335,3.11,173.46,173.45,3.21]
[1752707262141,3.11,173.48,173.46,3.21]
[1752707262340,3.11,173.48,173.47,6.50164176]
[1752707263530,5.7604,173.51,173.47,9.05324176]
[1752707263736,3.11,173.5,173.48,3.21]
[1752707263933,5.7604,173.51,173.5,3.29164176]
[1752707264539,8.8704,173.51,173.5,3.29164176]
[1752707264740,3.11,173.51,173.5,3.29164176]
[1752707265234,3.11,173.51,173.5,6.50164176]
[1752707265439,3.11,173.51,173.5,3.29164176]
[1752707266538,3.11,173.54,173.5,3.29164176]
[1752707266839,3.11,173.54,173.53,6.50164176]
[1752707267430,3.11,173.54,173.53,3.29164176]
[1752707271444,3.11,173.54,173.53,6.50164176]
[1752707271744,3.11,173.56,173.55,3.21]
[1752707271937,9.40475242,173.59,173.56,3.21]
[1752707271938,3.11,173.57,173.56,3.21]
[1752707272137,3.11,173.57,173.56,3.29164176]
[1752707272834,3.11,173.57,173.56,6.50164176]
[1752707273541,3.11,173.57,173.56,12.26024176]
[1752707273741,3.11,173.57,173.56,6.50164176]
[1752707274144,3.11,173.57,173.56,3.29164176]
[1752707275445,3.11,173.57,173.45,3.21]
[1752707275740,3.11,173.57,173.44,181.7847]
[1752707275741,5.7593,173.54,173.52,3.29164176]
[1752707275942,3.11,173.53,173.52,3.29164176]
[1752707276644,3.11,173.53,173.52,6.50164176]
[1752707276845,3.11,173.54,173.53,3.21]
[1752707278750,3.11,173.53,173.52,6.50164176]
[1752707278944,3.11,173.53,173.52,3.29164176]
[1752707279643,3.11,173.53,173.44,170.26]
[1752707279848,3.11,173.57,173.49,3.29164176]
[1752707280045,3.11,173.55,173.47,6.50164176]
[1752707280347,3.11,173.51,173.48,5.7613]
[1752707280545,3.11,173.51,173.47,6.50164176]
[1752707280753,3.11,173.51,173.47,3.29164176]
[1752707281050,3.11,173.49,173.42,3.21]
[1752707281251,3.11,173.48,173.41,6.50164176]
[1752707281445,3.11,173.48,173.45,6.50164176]
[1752707281848,3.11,173.47,173.45,6.50164176]
[1752707282052,3.11,173.47,173.45,9.05374176]
[1752707282247,3.11,173.47,173.46,3.21]
[1752707282646,3.11,173.49,173.46,8.9717]
[1752707282842,9.40475242,173.55,173.47,6.50164176]
[1752707283048,3.11,173.5,173.49,3.29164176]
[1752707283350,3.11,173.5,173.49,12.41254176]
[1752707283552,3.38,173.52,173.49,3.29164176]
[1752707283849,3.38,173.52,173.5,3.36]
[1752707284051,3.38,173.56,173.49,3.29164176]
[1752707284247,3.38,173.55,173.49,3.29164176]
[1752707284545,6.67164176,173.55,173.47,3.29164176]
[1752707284748,6.67164176,173.54,173.47,3.29164176]
[1752707284950,3.38,173.53,173.47,3.29164176]
[1752707285553,5.7608,173.5,173.47,3.29164176]
[1752707285745,3.38,173.48,173.47,6.65164176]
[1752707287252,9.1409,173.49,173.48,3.36]